Cogmind - Beta 13 --- EXPLORER MODE // 2024.03.31 @ 14:59:19 Player: Krzysztof Result: Destroyed by D-53 Grenadier with Mini Grenade Launcher Performance ------------- Evolutions (0) 0 Regions Visited (2) 400 Robots Destroyed (19) 95 Value Destroyed (219) 219 Prototype IDs (0) 0 Alien Tech Used (0) 0 Bonus (0) 0 TOTAL SCORE: 714 Bonus ------- None Cogmind --------- Core Integrity 0/250 Matter 300/300 Energy 99/100 System Corruption 0% Temperature Cool (0) Movement Core (50) Location -10/Mines Parts ------- > --- POWER (2) -------- (None) > --- PROPULSION (2) --- (None) > --- UTILITY (2) ------ (None) > --- WEAPON (2) ------- (None) > --- INVENTORY (5) ---- Flight Unit Heat Sink Small Matter Pod (50) EM Pulse Gun Light Assault Rifle Peak State ------------ > --- POWER ------------ Light Ion Engine > --- PROPULSION ------- Aluminum Leg Aluminum Leg > --- UTILITY ---------- Heat Sink Improved Terrain Scanner > --- WEAPON ----------- EM Pulse Gun Light Assault Rifle > --- INVENTORY -------- Light Ion Engine Aluminum Leg Small Matter Pod Medium Laser [Rating: 9] Favorites ----------- Power Light Ion Engine Engine Light Ion Engine Propulsion Aluminum Leg Leg Aluminum Leg Wheel Wheel Utility Improved Terrain Scanner Device Improved Terrain Scanner Storage Small Matter Pod Weapon Light Assault Rifle Energy Gun EM Pulse Gun Ballistic Gun Light Assault Rifle Build | -11 -10 -10 ------- Run | Yrd Mat Min Slots Evolved 1 | . 1 . Power 1 | . 1 . Propulsion . | . . . Utility . | . . . Weapon . | . . . Parts Attached 16 | 15 1 . Power 2 | 2 . . Engine 2 | 2 . . Core . | . . . Reactor . | . . . Propulsion 7 | 7 . . Treads . | . . . Leg 4 | 4 . . Wheel 3 | 3 . . Hover . | . . . Flight . | . . . Utility 4 | 4 . . Device 3 | 3 . . Storage 1 | 1 . . Processor . | . . . Hackware . | . . . Protection . | . . . Artifact . | . . . Weapon 3 | 2 1 . Energy Gun 2 | 1 1 . Energy Cannon . | . . . Ballistic Gun 1 | 1 . . Ballistic Cannon . | . . . Launcher . | . . . Special Weapon . | . . . Impact Weapon . | . . . Slashing Weapon . | . . . Piercing Weapon . | . . . Special Melee Weapon . | . . . Unidentified Prototypes . | . . . Parts Lost 7 | . . 7 Power 1 | . . 1 Propulsion 2 | . . 2 Utility 2 | . . 2 Weapon 2 | . . 2 Highest Loss Streak 7 | . . 7 To Critical Strikes . | . . . Average Slot Usage (%) 83 | . 87 75 Engine 11 | . 12 10 Leg 24 | . 25 21 Device 23 | . 25 21 Energy Gun 11 | . 12 10 Ballistic Gun 11 | . 12 10 Naked Turns 13 | . . 13 Heaviest Build 8 | 8 8 8 Greatest Support 20 | 20 20 20 Greatest Overweight (x) 2 | 2 . 1 Average Overweight (x) . | . . . Largest Inventory Capacity 5 | 5 5 5 Average Capacity 5 | 5 5 5 Most Carried 5 | 5 5 5 Average Carried 4 | 4 3 5 Final Capacity 5 | 5 5 5 Final Carried 5 | 4 5 5 Class Distribution -------------------- 100% | Hacker-Mutant Dominant Class ---------------- Hacker-Mutant | -10/Materials Hacker-Mutant | -10/Mines Resources | -11 -10 -10 ----------- Run | Yrd Mat Min Matter Collected 439 | 373 57 9 Remotely . | . . . Salvage Created 449 | 88 321 40 Parts 43 | 6 34 3 Haulers Intercepted . | . . . Recyclers Shooed . | . . . Parts Field Recycled . | . . . Retrieved Matter . | . . . Parts Self-Destructed . | . . . Prevented . | . . . Kills | -11 -10 -10 ------- Run | Yrd Mat Min Combat Hostiles Destroyed 5 | 1 4 . Guns 5 | 1 4 . Classes Destroyed 7 | 3 4 . Worker 5 | 1 3 1 Builder 4 | . 4 . Tunneler 2 | 1 . 1 Mechanic 1 | . 1 . Watcher 2 | . 2 . Swarmer 2 | . 2 . Grunt 3 | 1 2 . Best Kill Streak 3 | 1 3 1 Combat Bots Only 2 | 1 2 . Max Kills in Single Turn 1 | 1 1 1 Gunslinging . | . . . Exploded . | . . . Melee . | . . . Uniques/NPCs Destroyed . | . . . Combat | -11 -10 -10 -------- Run | Yrd Mat Min Hostile Shots Fired 87 | 12 61 14 Missed 21 | 6 14 1 Damage Taken 668 | 40 280 348 Core 252 | 13 92 147 Absorbed by Shields . | . . . Ignored by Resistances 422 | 26 188 208 Core Remaining (%) 94 | 94 . . Volleys Fired 62 | 10 49 3 Largest 2 | 2 2 2 Hottest 70 | 60 70 70 Shots Fired 122 | 18 98 6 Gun 122 | 18 98 6 Cannon . | . . . Launcher . | . . . Special . | . . . Kinetic 62 | 10 49 3 Thermal 48 | . 45 3 Explosive . | . . . Electromagnetic 12 | 8 4 . Robot Hit Streak 19 | 8 19 11 Robot Miss Streak 2 | 1 2 1 Penetration Max . | . . . Secondary Targets 1 | . 1 . Max Gunslinging Chain 1 | . 1 . Shots Hit Robots 59 | 12 44 3 Core Hits 30 | 4 24 2 Critical Kills . | . . . Critical Parts Destroyed . | . . . Critical Strikes 2 | . 2 . Burn 2 | . 2 . Melee Attacks . | . . . Impact . | . . . Slashing . | . . . Piercing . | . . . Sneak Attacks . | . . . Combat Hostiles . | . . . Follow-up Attacks . | . . . Damage Inflicted 677 | 124 521 32 Guns 669 | 123 514 32 Cannons . | . . . Explosions . | . . . Melee . | . . . Ramming 8 | 1 7 . Kinetic 216 | 39 169 8 Thermal 369 | . 345 24 Explosive . | . . . Electromagnetic 84 | 84 . . Impact . | . . . Slashing . | . . . Piercing . | . . . Highest Corruption . | . . . Average Corruption . | . . . Corruption Purged . | . . . Corruption Blocked . | . . . Overload Shots . | . . . Overflow Damage . | . . . Projectiles . | . . . Explosions . | . . . Melee . | . . . Knockbacks . | . . . Impact . | . . . Kinetic . | . . . Secondary . | . . . Self-Inflicted Damage . | . . . Shots . | . . . Rammed . | . . . Targets Rammed 2 | 1 1 . Kicked 2 | 1 1 . Crushed . | . . . Highest Temperature 135 | 46 135 30 Average Temperature 37 | 18 40 18 Received Heat Transfer 189 | 36 153 . Siege Activations . | . . . Robots Corrupted . | . . . Combat Hostiles . | . . . Parts Fried . | . . . Impact Corruptions . | . . . Robots Melted . | . . . Combat Hostiles . | . . . Parts Melted 2 | . 2 . Heat Transferred 1258 | . 1184 74 Parts Sabotaged . | . . . Parts Stolen . | . . . Parts Stripped . | . . . Power Chain Reactions . | . . . Alert | -11 -10 -10 ------- Run | Yrd Mat Min Peak Influence 165 | 25 165 10 Initial 5 | . . 5 Average 9 | 2 49 8 Maximum Alert Level . | . . . Low Security (%) 100 | 100 100 100 Level 1 . | . . . Level 2 . | . . . Level 3 . | . . . Level 4 . | . . . Level 5 . | . . . High Security . | . . . Max Security . | . . . Squads Dispatched . | . . . Investigation . | . . . Extermination . | . . . Reinforcement . | . . . Assault . | . . . Garrison . | . . . Intercept . | . . . Searches Triggered . | . . . Construction Impeded . | . . . Haulers Reinforced . | . . . Active Scanning Responses . | . . . Cargo Convoy Interrupts . | . . . Stealth | -11 -10 -10 --------- Run | Yrd Mat Min Distress Signals 1 | . 1 . Communications Jammed . | . . . Distress Signals . | . . . Times Spotted 13 | 1 10 2 Peak Tracking Total 3 | 1 3 2 Tactical Retreats 1 | . 1 . Traps | -11 -10 -10 ------- Run | Yrd Mat Min Traps Triggered . | . . . Indirectly . | . . . Trap Hack Attempts . | . . . Triggered . | . . . Disarmed . | . . . Reprogrammed . | . . . Reused . | . . . Traps Extracted . | . . . Installed . | . . . Triggered . | . . . Machines | -11 -10 -10 ---------- Run | Yrd Mat Min Machines Disabled . | . . . Max in Single Turn . | . . . Machines Repaired . | . . . Machines Dismantled . | . . . Machines Sabotaged . | . . . Overloaded Fab Kills . | . . . Hacking | -11 -10 -10 --------- Run | Yrd Mat Min Machines Accessed . | . . . Terminals . | . . . Fabricators . | . . . Repair Stations . | . . . Recycling Units . | . . . Scanalyzers . | . . . Garrison Access . | . . . Total Hacks . | . . . Successful . | . . . Failed . | . . . Catastrophic . | . . . Database Lockouts . | . . . Manual . | . . . Terminals . | . . . Fabricators . | . . . Repair Stations . | . . . Recycling Units . | . . . Scanalyzers . | . . . Garrison Access . | . . . Terminal Hacks . | . . . Fabricator Hacks . | . . . Repair Station Hacks . | . . . Recycling Unit Hacks . | . . . Scanalyzer . | . . . Garrison Access Hacks . | . . . Unauthorized Hacks . | . . . Terminals . | . . . Fabricators . | . . . Repair Stations . | . . . Recycling Units . | . . . Scanalyzers . | . . . Garrison Access . | . . . Data Cores Recovered . | . . . Used . | . . . Hacking Detections . | . . . Full Trace Events . | . . . Feedback Events . | . . . Feedback Blocked . | . . . Robot Schematics Acquired . | . . . Robots Built . | . . . Authchips . | . . . Time . | . . . Total Robot Build Rating . | . . . Part Schematics Acquired . | . . . Parts Built . | . . . Authchips . | . . . Time . | . . . Total Part Build Rating . | . . . Parts Repaired . | . . . Time . | . . . Parts Recycled . | . . . Recycled Matter . | . . . Retrieved Matter . | . . . Retrieved Components . | . . . Parts Scanalyzed . | . . . Part Schematics Acquired . | . . . Parts Damaged . | . . . Bothacking | -11 -10 -10 ------------ Run | Yrd Mat Min Used RIF Installer . | . . . Robots Hacked . | . . . Non-combat . | . . . Combat . | . . . Robot Hacks Applied . | . . . Relay Couplers Released . | . . . Fabnet Peak Effective % . | . . . Robots Rewired . | . . . Allies Hacked . | . . . Hacks Repelled . | . . . Allies | -11 -10 -10 -------- Run | Yrd Mat Min Total Allies . | . . . Largest Group . | . . . Highest-Rated Group . | . . . Highest-Rated Ally . | . . . Total Orders . | . . . Ally Attacks . | . . . Total Damage . | . . . Kills . | . . . Allies Corrupted . | . . . Allies Melted . | . . . Intel | -11 -10 -10 ------- Run | Yrd Mat Min Robot Analysis Total . | . . . Derelict Logs Recovered . | . . . Drone Launches . | . . . Drone Recoveries . | . . . Exploration | -11 -10 -10 ------------- Run | Yrd Mat Min Turns Passed 3899 | 3193 509 197 Spaces Moved 2039 | 1557 306 176 Core 294 | 258 . 36 Treads . | . . . Legs 1739 | 1293 306 140 Wheels 6 | 6 . . Hover . | . . . Flight . | . . . Fastest Speed 50 | 50 120 50 Average Speed 109 | 108 120 107 Slowest Speed 150 | 150 120 120 Overloaded Moves . | . . . Propulsion Burnouts . | . . . Robots Hopped . | . . . Cave-ins Triggered . | . . . Exploration Rate (%) 34 | 59 26 18 Regions Visited 2 Branch Regions 1 Pre-discovered Areas . | . . . Known Exits Taken 2 | 1 1 . Unknown Exits Taken . | . . . Scrap Searched . | . . . Spaces Dug . | . . . Terrain Destroyed . | . . . Melee . | . . . Projectile . | . . . AOE . | . . . Terrain Rammed . | . . . Walls Destroyed . | . . . Machines Disabled . | . . . Actions | -11 -10 -10 --------- Run | Yrd Mat Min Total 3587 | 3048 360 179 Wait 1444 | 1444 . . Move 2037 | 1556 305 176 Hop . | . . . Pick Up 17 | 14 3 . Fast Attach 1 | 1 . . Attach 9 | 9 . . Detach 3 | 3 . . Swap 6 | 5 1 . Drop 6 | 5 1 . Fire 62 | 10 49 3 Melee . | . . . Ram . | . . . Kick 2 | 1 1 . Crush . | . . . Escape Stasis . | . . . Rewire . | . . . Trap . | . . . Miscellaneous . | . . . Route ------- -11/Scrapyard -10/Materials -10/Mines History --------- Turn | Location | Event 2 | -11/Scrapyard | Met Revision 17 78 | -11/Scrapyard | Identified exit to Materials 78 | -11/Scrapyard | Discovered exit to Materials (range 8) 3194 | -11/Scrapyard | Entered Materials 3194 | -10/Materials | Evolved 1 slot: Power x1 3195 | -10/Materials | Build established: Hacker-Mutant 3652 | -10/Materials | Identified exit to Mines 3652 | -10/Materials | Discovered exit to Mines (range 16) 3703 | -10/Materials | Entered Mines 3767 | -10/Mines | Assembled infested the area 3773 | -10/Mines | Found a damaged Exp. Sensor Array with a note attached 3877 | -10/Mines | Core integrity fell below 50% 3888 | -10/Mines | Core integrity fell below 20% 3900 | -10/Mines | Destroyed by D-53 Grenadier with Mini Grenade Launcher Last Messages --------------- T-07 Excavator destroyed. The unstable cave ceiling collapses. Aluminum Leg destroyed. Lgt. Assault Rifle destroyed. Med. Laser destroyed. Open spaces previously occupied by now-destroyed walls and earth have a slight glow to them. Consecutive moves through these unstable areas may cause a cave-in, but only if doing so for extended periods. Tunneling a short distance between rooms is safe unless the area was destabilized by an explosion. The unstable cave ceiling collapses. Aluminum Leg destroyed. The unstable cave ceiling collapses. Imp. Terrain Scanner destroyed. Lgt. Ion Engine destroyed. The unstable cave ceiling collapses. U-05 Engineer builds a Wall. [Achievement: First Step to Greatness] Map ----- +----------------------------------------------------+ | | | | | | | | | | | | | | | | | | | | | | | ??????????????????????????????????? | | ?????????????#????????????????????? | | ????????????#?????????????????????? | | ?################?????????????????? | | ?################????#????????????? | | ?## ##?????????????????? | | ?## """ ##????#????????????? | | ?## """ ##??#??????????????? | | ?## """ ##??#??????#???????? | | ?## =%*##?????????????????? | | ?## """ """ ##????#????????????? | | ?## """ """ ###????????????????? | | ?## """ """ ##??????????#??????? | | ### ##?#?######????????? | | ?## """@""" ##???######?????? ?? | | ?## """ """ ###### ##???????? | | ?## """d""" ### * ##????????? | | ### # ##???????? | | ?###### ## ### #???????? | | ?###### # ##?????#?? | | ?????## ##??????? | | ?????#### #??????? | | ?#???### #??????? | | ???????## d # #? | | ?#??????## # | | ????????## #### | | ????#???## #### # # """## | | ??#?????## ## ## """#? | | ????????## ### ##? ""??? | | ??????#?######## #### ##?? ?? | | ????????############### ###?#####?? | | ??????#???????######### ##?#??????? | | ?????????#??????##???## ##????????? | | ?????????????#????#???? #?????????? | | ?????????#?#?????##???? ?????????? | | ???????????????#??????? #?????#???? | | ??????????????????????? ??????????? | | ?????????????????????? #?????#???? | | ??????????????????????###?? ??????? | +----------------------------------------------------+ Best States ------------- Heat Dissipation 35 Energy Generation 10 Energy Capacity 125 Matter Stores 350 Matter Capacity 350 Sight Range 16 Terrain Scan Range 16 Terrain Scan Density 10 Resistance: KI 35 Resistance: TH 35 Resistance: EX 35 Resistance: EM 35 Resistance: I 35 Resistance: S 35 Resistance: P 35 Evasion (%) 55 Offensive Hacking 20 Item Schematics ----------------- None Robot Schematics ------------------ None Fabricated ------------ Nothing Alien Tech Used ----------------- None Achievements -------------- Crack Shot First Step to Greatness Challenges ------------ None Game ------ Seed MetafiberBiomechanicalSuite Manual? 0 Play Time 01:17:08 Cumulative 2.5 hours Start 2024.03.31 @ 12:13:20 End 2024.03.31 @ 14:59:19 Sessions 1 Manual Loads 0 Difficulty Explorer Special Mode None Game No. 1 Rogue 0 Adventurer 0 Explorer 1 Win Type - Total 0 Types 0/0/0/0/0/0/0/0/0 Lore% 0 Gallery% 1 Achievement% 0 Wizard Run 0 Options --------- Layout 1 ASCII 0 Keyboard 1 Movement Arrows Keybinds 0 Fullscreen 1 Font 24/Smallcaps Map View 50x35 Zoom Use 0% Tactical HUD 0 Map Filters NONE Filters NONE Steam 1 RUN: 05779ef1-9dd3-458c-bbaa-1ee19026da66